[Event "*** Titled Tuesday Blitz"]
[Site "Chess.com"]
[Date "2021.02.02"]
[Round "10"]
[White "MPGM"]
[Black "Rsnr"]
[Result "1/2-1/2"]
[WhiteElo "2606"]
[BlackElo "2771"]
[TimeControl "180+1"]
[EndTime "11:56:29 PST"]
[Termination "Game drawn by agreement"]

1. c4 {[%clk 0:03:00.9]} 1... c6 {[%clk 0:02:58.5]} 2. d4 {[%clk 0:02:58.5]}
2... d5 {[%clk 0:02:59.4]} 3. Nf3 {[%clk 0:02:58.2]} 3... Nf6 {[%clk 0:02:59.5]}
4. g3 {[%clk 0:02:58.2]} 4... Bf5 {[%clk 0:02:33.5]} 5. Nc3 {[%clk 0:02:56.6]}
5... e6 {[%clk 0:02:31.3]} 6. Nh4 {[%clk 0:02:54.9]} 6... Be4 {[%clk 0:02:31.6]}
7. f3 {[%clk 0:02:52.9]} 7... Bg6 {[%clk 0:02:31.9]} 8. e3 {[%clk 0:02:50.5]}
8... Nbd7 {[%clk 0:02:31.3]} 9. Nxg6 {[%clk 0:02:36]} 9... hxg6 {[%clk
0:02:31.4]} 10. Qd3 {[%clk 0:02:36.6]} 10... Be7 {[%clk 0:02:25.5]} 11. Bg2
{[%clk 0:02:34.8]} 11... a6 {[%clk 0:02:24.3]} 12. Bd2 {[%clk 0:02:30.7]} 12...
b5 {[%clk 0:02:24.6]} 13. cxd5 {[%clk 0:02:27.2]} 13... cxd5 {[%clk 0:02:23.9]}
14. O-O {[%clk 0:02:25]} 14... O-O {[%clk 0:02:23.6]} 15. a4 {[%clk 0:02:10.7]}
15... b4 {[%clk 0:02:22.8]} 16. Ne2 {[%clk 0:02:10.2]} 16... Qb6 {[%clk
0:02:08.2]} 17. b3 {[%clk 0:02:08.6]} 17... Rfc8 {[%clk 0:02:03.8]} 18. Rac1
{[%clk 0:02:08.2]} 18... Ne8 {[%clk 0:01:54.1]} 19. Rxc8 {[%clk 0:02:06.1]}
19... Rxc8 {[%clk 0:01:55]} 20. Rc1 {[%clk 0:02:06.6]} 20... Rxc1+ {[%clk
0:01:55.6]} 21. Nxc1 {[%clk 0:02:06.8]} 21... Nd6 {[%clk 0:01:54.8]} 22. Bf1
{[%clk 0:02:04.7]} 22... a5 {[%clk 0:01:54.2]} 23. Qc2 {[%clk 0:02:01.2]} 23...
e5 {[%clk 0:01:38.6]} 24. dxe5 {[%clk 0:02:01.1]} 24... Nxe5 {[%clk 0:01:39]}
25. Kg2 {[%clk 0:02:01.8]} 25... Nf5 {[%clk 0:01:35.1]} 26. Nd3 {[%clk
0:01:51.8]} 26... Nxe3+ {[%clk 0:01:21]} 27. Bxe3 {[%clk 0:01:50.8]} 27... Qxe3
{[%clk 0:01:21.9]} 28. Nxe5 {[%clk 0:01:45.2]} 28... Qxe5 {[%clk 0:01:22.8]} 29.
Qe2 {[%clk 0:01:26]} 29... Qf6 {[%clk 0:01:16.8]} 30. f4 {[%clk 0:01:25.6]}
30... g5 {[%clk 0:01:14.9]} 31. fxg5 {[%clk 0:01:21.2]} 31... Qxg5 {[%clk
0:01:15.8]} 32. Qd3 {[%clk 0:01:18.5]} 32... Bf6 {[%clk 0:01:14.6]} 33. Be2
{[%clk 0:01:17.4]} 33... Qe5 {[%clk 0:00:44.8]} 34. Bf3 {[%clk 0:01:16.9]} 34...
Qb2+ {[%clk 0:00:44.8]} 35. Kh3 {[%clk 0:01:15.4]} 35... d4 {[%clk 0:00:44.6]}
36. Bd5 {[%clk 0:01:14.8]} 36... Qf2 {[%clk 0:00:39.9]} 37. Qf3 {[%clk
0:01:03.6]} 37... Qxf3 {[%clk 0:00:24.2]} 38. Bxf3 {[%clk 0:01:04.5]} 38... Kf8
{[%clk 0:00:25.1]} 39. Kg4 {[%clk 0:01:04.4]} 39... Ke7 {[%clk 0:00:24.9]} 40.
Kf5 {[%clk 0:01:04.9]} 40... Kd6 {[%clk 0:00:22.8]} 41. Ke4 {[%clk 0:01:05]}
41... Be5 {[%clk 0:00:20.5]} 42. Be2 {[%clk 0:01:04.1]} 42... g6 {[%clk
0:00:18.8]} 43. Bc4 {[%clk 0:01:00.1]} 43... f5+ {[%clk 0:00:19.2]} 44. Kd3
{[%clk 0:00:59.9]} 44... Ke7 {[%clk 0:00:18.6]} 45. Ke2 {[%clk 0:00:58.7]} 45...
Kf6 {[%clk 0:00:17.6]} 46. Kf3 {[%clk 0:00:59.3]} 46... g5 {[%clk 0:00:17.9]}
47. g4 {[%clk 0:00:58.4]} 47... Bxh2 {[%clk 0:00:16.2]} 48. Bd3 {[%clk 0:00:59]}
48... fxg4+ {[%clk 0:00:16.1]} 49. Kxg4 {[%clk 0:00:59.9]} 49... Bf4 {[%clk
0:00:16.8]} 50. Kf3 {[%clk 0:00:58.4]} 50... Ke5 {[%clk 0:00:16.8]} 51. Kg4
{[%clk 0:00:58.8]} 51... Bc1 {[%clk 0:00:14.6]} 52. Bc2 {[%clk 0:00:58.7]} 52...
Kf6 {[%clk 0:00:10.2]} 53. Bd3 {[%clk 0:00:58.8]} 53... Bf4 {[%clk 0:00:08.6]}
54. Bc2 {[%clk 0:00:58.8]} 54... Ke6 {[%clk 0:00:09]} 55. Bd3 {[%clk 0:00:59.3]}
55... Kd5 {[%clk 0:00:09.5]} 56. Bc2 {[%clk 0:00:59.7]} 56... Bd2 {[%clk
0:00:08.1]} 57. Bd3 {[%clk 0:01:00.6]} 57... Be3 {[%clk 0:00:06.6]} 58. Bc2
{[%clk 0:01:01.1]} 58... d3 {[%clk 0:00:07.2]} 59. Bxd3 {[%clk 0:01:01.8]} 59...
Kd4 {[%clk 0:00:08.1]} 60. Bc4 {[%clk 0:01:02.4]} 60... Bf4 {[%clk 0:00:08.6]}
61. Bg8 {[%clk 0:01:02.8]} 61... Kc3 {[%clk 0:00:08.5]} 62. Bf7 {[%clk
0:01:03.7]} 62... Kd4 {[%clk 0:00:08.2]} 1/2-1/2

[Event "*** Titled Tuesday Blitz"]
[Site "Chess.com"]
[Date "2021.02.02"]
[Round "10"]
[White "profofchess"]
[Black "Matols"]
[Result "1/2-1/2"]
[WhiteElo "2377"]
[BlackElo "2276"]
[TimeControl "180+1"]
[EndTime "11:56:33 PST"]
[Termination "Game drawn by repetition"]

1. e4 {[%clk 0:03:00.9]} 1... e6 {[%clk 0:03:00]} 2. d4 {[%clk 0:02:59.8]} 2...
d5 {[%clk 0:03:00.5]} 3. Nc3 {[%clk 0:03:00.5]} 3... Nf6 {[%clk 0:03:00.6]} 4.
Bg5 {[%clk 0:02:59.6]} 4... Bb4 {[%clk 0:03:00.2]} 5. e5 {[%clk 0:02:59.4]} 5...
h6 {[%clk 0:03:00.5]} 6. Be3 {[%clk 0:02:59.6]} 6... Ne4 {[%clk 0:02:59.9]} 7.
Qg4 {[%clk 0:03:00]} 7... g6 {[%clk 0:02:59.5]} 8. a3 {[%clk 0:02:57.6]} 8...
Bxc3+ {[%clk 0:02:58.7]} 9. bxc3 {[%clk 0:02:57.7]} 9... c5 {[%clk 0:02:58.4]}
10. Bd3 {[%clk 0:02:51.8]} 10... h5 {[%clk 0:02:56.8]} 11. Qh3 {[%clk
0:02:42.8]} 11... Nxc3 {[%clk 0:02:53.3]} 12. dxc5 {[%clk 0:02:37.4]} 12... d4
{[%clk 0:02:52.1]} 13. Bd2 {[%clk 0:02:36.7]} 13... Na4 {[%clk 0:02:51]} 14. Nf3
{[%clk 0:01:51.5]} 14... Nxc5 {[%clk 0:02:50.5]} 15. O-O {[%clk 0:01:49.1]}
15... Nc6 {[%clk 0:02:50.5]} 16. Bg5 {[%clk 0:01:47.1]} 16... Qa5 {[%clk
0:02:47]} 17. Bf6 {[%clk 0:01:46.1]} 17... Rg8 {[%clk 0:02:44.6]} 18. Ng5 {[%clk
0:01:21.6]} 18... Nxd3 {[%clk 0:02:42.2]} 19. Qxd3 {[%clk 0:01:10.5]} 19... Qd5
{[%clk 0:02:24]} 20. f4 {[%clk 0:00:55.4]} 20... Bd7 {[%clk 0:02:12.4]} 21. Ne4
{[%clk 0:00:55]} 21... Ne7 {[%clk 0:01:57]} 22. Nd6+ {[%clk 0:00:53.4]} 22...
Kf8 {[%clk 0:01:56.7]} 23. Qg3 {[%clk 0:00:27.9]} 23... Bc6 {[%clk 0:01:54.7]}
24. Qg5 {[%clk 0:00:22.1]} 24... Nf5 {[%clk 0:01:48.7]} 25. Rf2 {[%clk
0:00:20.6]} 25... a5 {[%clk 0:00:50.8]} 26. Re1 {[%clk 0:00:18.3]} 26... a4
{[%clk 0:00:49.9]} 27. Nxf5 {[%clk 0:00:11.7]} 27... exf5 {[%clk 0:00:49.4]} 28.
Qh6+ {[%clk 0:00:10.6]} 28... Ke8 {[%clk 0:00:49.1]} 29. e6 {[%clk 0:00:09.5]}
29... Rf8 {[%clk 0:00:20.1]} 30. e7 {[%clk 0:00:08.9]} 30... Rg8 {[%clk
0:00:19.3]} 31. Qh7 {[%clk 0:00:08.1]} 31... Kd7 {[%clk 0:00:18.7]} 32. h3
{[%clk 0:00:04.8]} 32... Rge8 {[%clk 0:00:16.8]} 33. Qh6 {[%clk 0:00:03.8]}
33... Ra6 {[%clk 0:00:16]} 34. Qg5 {[%clk 0:00:03.9]} 34... Rb6 {[%clk 0:00:16]}
35. Qg3 {[%clk 0:00:03.9]} 35... Rb2 {[%clk 0:00:15.2]} 36. Qd3 {[%clk
0:00:03.6]} 36... Kc8 {[%clk 0:00:14.4]} 37. Qd2 {[%clk 0:00:02.6]} 37... Ra2
{[%clk 0:00:13.3]} 38. Qd3 {[%clk 0:00:02.4]} 38... Bb5 {[%clk 0:00:11.9]} 39.
Qg3 {[%clk 0:00:01.9]} 39... Bc6 {[%clk 0:00:11.7]} 40. Qd3 {[%clk 0:00:01.6]}
40... Bb5 {[%clk 0:00:11.9]} 41. Qg3 {[%clk 0:00:02.5]} 41... Bc4 {[%clk
0:00:11.8]} 42. Qh4 {[%clk 0:00:03]} 42... Bb5 {[%clk 0:00:11.9]} 43. Qg3 {[%clk
0:00:03.4]} 1/2-1/2

[Event "*** Titled Tuesday Blitz"]
[Site "Chess.com"]
[Date "2021.02.02"]
[Round "10"]
[White "NaciSAN"]
[Black "karinachess1"]
[Result "1/2-1/2"]
[WhiteElo "2323"]
[BlackElo "2471"]
[TimeControl "180+1"]
[EndTime "11:56:34 PST"]
[Termination "Game drawn by repetition"]

1. e4 {[%clk 0:03:00.9]} 1... c5 {[%clk 0:02:58.2]} 2. Nf3 {[%clk 0:03:01]} 2...
e6 {[%clk 0:02:57.9]} 3. g3 {[%clk 0:03:01]} 3... Nc6 {[%clk 0:02:42.6]} 4. Bg2
{[%clk 0:03:01.1]} 4... Nf6 {[%clk 0:02:41.3]} 5. Nc3 {[%clk 0:03:00.1]} 5... d6
{[%clk 0:02:23.2]} 6. O-O {[%clk 0:02:59.3]} 6... Be7 {[%clk 0:02:22.6]} 7. Re1
{[%clk 0:02:58.8]} 7... O-O {[%clk 0:02:21.3]} 8. e5 {[%clk 0:02:58.2]} 8...
Nxe5 {[%clk 0:02:15.6]} 9. Nxe5 {[%clk 0:02:59.1]} 9... dxe5 {[%clk 0:02:16.5]}
10. Rxe5 {[%clk 0:02:58.9]} 10... Qc7 {[%clk 0:02:09]} 11. Re1 {[%clk
0:02:58.4]} 11... Bd7 {[%clk 0:02:05.9]} 12. d3 {[%clk 0:02:56.5]} 12... Bc6
{[%clk 0:02:02.4]} 13. Bf4 {[%clk 0:02:53.2]} 13... Qd7 {[%clk 0:02:00.1]} 14.
Ne4 {[%clk 0:02:47.3]} 14... Rfd8 {[%clk 0:01:49.3]} 15. b3 {[%clk 0:02:37.5]}
15... Rac8 {[%clk 0:01:33.7]} 16. Nxf6+ {[%clk 0:02:36.9]} 16... Bxf6 {[%clk
0:01:32.9]} 17. Be5 {[%clk 0:02:36.6]} 17... Bxe5 {[%clk 0:01:21.4]} 18. Rxe5
{[%clk 0:02:36.2]} 18... Qd4 {[%clk 0:01:17.9]} 19. Re1 {[%clk 0:02:24.5]} 19...
g6 {[%clk 0:01:04.4]} 20. Bxc6 {[%clk 0:02:21.3]} 20... Rxc6 {[%clk 0:01:04.4]}
21. Qf3 {[%clk 0:02:21.8]} 21... h5 {[%clk 0:00:58.1]} 22. h4 {[%clk 0:02:20.9]}
22... Kg7 {[%clk 0:00:57.3]} 23. Qe4 {[%clk 0:02:20]} 23... Rc7 {[%clk
0:00:44.9]} 24. Qe5+ {[%clk 0:02:17.9]} 24... Qxe5 {[%clk 0:00:43.1]} 25. Rxe5
{[%clk 0:02:18.8]} 25... Rd5 {[%clk 0:00:33.3]} 26. Rae1 {[%clk 0:02:17.6]}
26... Rxe5 {[%clk 0:00:25.4]} 27. Rxe5 {[%clk 0:02:18.5]} 27... Kf6 {[%clk
0:00:26]} 28. f4 {[%clk 0:02:18.1]} 28... Ke7 {[%clk 0:00:26.2]} 29. Kf2 {[%clk
0:02:18]} 29... Kd6 {[%clk 0:00:25.5]} 30. Ke2 {[%clk 0:02:14.8]} 30... f6
{[%clk 0:00:25.4]} 31. Re4 {[%clk 0:02:14.4]} 31... e5 {[%clk 0:00:19]} 32.
fxe5+ {[%clk 0:02:13.3]} 32... fxe5 {[%clk 0:00:19.9]} 33. Re3 {[%clk
0:02:02.4]} 33... Rf7 {[%clk 0:00:18]} 34. Rf3 {[%clk 0:02:02.6]} 34... Rf5
{[%clk 0:00:16.4]} 35. Ke3 {[%clk 0:02:00.5]} 35... Kd5 {[%clk 0:00:15.7]} 36.
c3 {[%clk 0:01:50.2]} 36... b6 {[%clk 0:00:13.3]} 37. a3 {[%clk 0:01:48.9]}
37... a5 {[%clk 0:00:13]} 38. a4 {[%clk 0:01:39.7]} 38... Kd6 {[%clk 0:00:07]}
39. Ke4 {[%clk 0:01:39.4]} 39... Ke6 {[%clk 0:00:07.3]} 40. Ke3 {[%clk 0:01:08]}
40... Kd5 {[%clk 0:00:06.6]} 41. c4+ {[%clk 0:00:54]} 41... Kd6 {[%clk
0:00:06.8]} 42. Ke4 {[%clk 0:00:54.4]} 42... Ke6 {[%clk 0:00:07.3]} 43. Ke3
{[%clk 0:00:54.5]} 43... Rxf3+ {[%clk 0:00:07]} 44. Kxf3 {[%clk 0:00:54.7]}
44... Kf5 {[%clk 0:00:07.9]} 45. Ke3 {[%clk 0:00:42.6]} 45... Kg4 {[%clk
0:00:08]} 46. Kf2 {[%clk 0:00:42.8]} 46... g5 {[%clk 0:00:06.7]} 47. hxg5 {[%clk
0:00:42.7]} 47... Kxg5 {[%clk 0:00:07.6]} 48. Kf3 {[%clk 0:00:42.9]} 48... Kf5
{[%clk 0:00:06.4]} 49. Ke3 {[%clk 0:00:41.5]} 49... Kg4 {[%clk 0:00:06.5]} 50.
Kf2 {[%clk 0:00:41.8]} 50... Kg5 {[%clk 0:00:05.5]} 51. Kf3 {[%clk 0:00:41.9]}
51... Kf5 {[%clk 0:00:05.7]} 52. Ke3 {[%clk 0:00:41.8]} 52... Kg4 {[%clk
0:00:04.6]} 53. Kf2 {[%clk 0:00:42]} 53... Kg5 {[%clk 0:00:05]} 1/2-1/2

[Event "*** Titled Tuesday Blitz"]
[Site "Chess.com"]
[Date "2021.02.02"]
[Round "10"]
[White "1977Ivan"]
[Black "Grimlock_Glasgow"]
[Result "1-0"]
[WhiteElo "2692"]
[BlackElo "2484"]
[TimeControl "180+1"]
[EndTime "11:56:35 PST"]
[Termination "1977Ivan won by resignation"]

1. d4 {[%clk 0:03:00.9]} 1... e6 {[%clk 0:02:59.8]} 2. e4 {[%clk 0:03:00]} 2...
d5 {[%clk 0:02:58.7]} 3. Nc3 {[%clk 0:03:00.5]} 3... Nf6 {[%clk 0:02:56]} 4. Bd3
{[%clk 0:03:00]} 4... c5 {[%clk 0:02:47.3]} 5. exd5 {[%clk 0:02:59.7]} 5... cxd4
{[%clk 0:02:41.1]} 6. Nb5 {[%clk 0:02:58.6]} 6... Nxd5 {[%clk 0:02:28.6]} 7.
Nxd4 {[%clk 0:02:56]} 7... Nb4 {[%clk 0:02:26]} 8. Bb5+ {[%clk 0:02:49]} 8...
Bd7 {[%clk 0:02:20.8]} 9. a3 {[%clk 0:02:37.2]} 9... Bxb5 {[%clk 0:02:11.8]} 10.
Nxb5 {[%clk 0:02:38.1]} 10... Qxd1+ {[%clk 0:02:11.5]} 11. Kxd1 {[%clk
0:02:38.7]} 11... N4a6 {[%clk 0:02:06.7]} 12. Be3 {[%clk 0:02:36.5]} 12... Nc6
{[%clk 0:02:05.5]} 13. Nf3 {[%clk 0:02:30.7]} 13... O-O-O+ {[%clk 0:01:58.2]}
14. Ke2 {[%clk 0:02:29.7]} 14... Bc5 {[%clk 0:01:58.7]} 15. b4 {[%clk
0:02:27.6]} 15... Bxe3 {[%clk 0:01:56.4]} 16. Kxe3 {[%clk 0:02:28.5]} 16... Nc7
{[%clk 0:01:52.3]} 17. Nxc7 {[%clk 0:02:27.7]} 17... Kxc7 {[%clk 0:01:53.2]} 18.
Rhd1 {[%clk 0:02:27.4]} 18... f6 {[%clk 0:01:50.7]} 19. c4 {[%clk 0:02:24.7]}
19... e5 {[%clk 0:01:37.4]} 20. c5 {[%clk 0:02:17.2]} 20... Ne7 {[%clk
0:01:36.4]} 21. Ke4 {[%clk 0:02:17]} 21... g6 {[%clk 0:01:07]} 22. Rac1 {[%clk
0:02:01.2]} 22... Rhe8 {[%clk 0:00:57.4]} 23. g4 {[%clk 0:01:48.5]} 23... Kc6
{[%clk 0:00:25.7]} 24. a4 {[%clk 0:01:45.2]} 24... a6 {[%clk 0:00:24.9]} 25.
Rxd8 {[%clk 0:00:58.7]} 25... Rxd8 {[%clk 0:00:24.2]} 26. g5 {[%clk 0:00:59.3]}
26... Nd5 {[%clk 0:00:17.2]} 27. gxf6 {[%clk 0:00:53]} 27... Nxf6+ {[%clk
0:00:18.1]} 28. Kxe5 {[%clk 0:00:52.6]} 28... Ng4+ {[%clk 0:00:18.1]} 29. Ke6
{[%clk 0:00:38.5]} 29... Nxf2 {[%clk 0:00:15]} 30. Ne5+ {[%clk 0:00:26.9]} 30...
Kc7 {[%clk 0:00:14.8]} 31. Ke7 {[%clk 0:00:27.3]} 31... Nd3 {[%clk 0:00:12.6]}
32. Nxd3 {[%clk 0:00:22.3]} 32... Rxd3 {[%clk 0:00:13.5]} 33. b5 {[%clk
0:00:22.8]} 33... axb5 {[%clk 0:00:12.7]} 34. axb5 {[%clk 0:00:22.4]} 34... Re3+
{[%clk 0:00:11.6]} 35. Kf6 {[%clk 0:00:21.8]} 35... Re2 {[%clk 0:00:11]} 36. h4
{[%clk 0:00:21.1]} 36... Rf2+ {[%clk 0:00:09.8]} 37. Kg7 {[%clk 0:00:20.5]}
37... Rh2 {[%clk 0:00:09.6]} 38. Rc4 {[%clk 0:00:19.7]} 38... Rb2 {[%clk
0:00:04.6]} 39. b6+ {[%clk 0:00:19.1]} 39... Kc6 {[%clk 0:00:03.5]} 40. Kxh7
{[%clk 0:00:20]} 40... Rg2 {[%clk 0:00:03.5]} 41. Kh6 {[%clk 0:00:19.3]} 41...
Kb5 {[%clk 0:00:03.6]} 42. c6 {[%clk 0:00:15.7]} 42... Kxb6 {[%clk 0:00:01.2]}
43. c7 {[%clk 0:00:15.1]} 1-0

[Event "*** Titled Tuesday Blitz"]
[Site "Chess.com"]
[Date "2021.02.02"]
[Round "10"]
[White "Firstov"]
[Black "gumimis"]
[Result "1-0"]
[WhiteElo "2473"]
[BlackElo "2324"]
[TimeControl "180+1"]
[EndTime "11:56:35 PST"]
[Termination "Firstov won by checkmate"]

1. b3 {[%clk 0:03:00.9]} 1... c5 {[%clk 0:02:56.6]} 2. Bb2 {[%clk 0:03:01.8]}
2... Nc6 {[%clk 0:02:57]} 3. e3 {[%clk 0:03:02.2]} 3... e5 {[%clk 0:02:54.5]} 4.
Bb5 {[%clk 0:03:01.8]} 4... Qc7 {[%clk 0:02:51.9]} 5. Bxc6 {[%clk 0:02:40.3]}
5... bxc6 {[%clk 0:02:49.9]} 6. d3 {[%clk 0:02:39.3]} 6... d5 {[%clk 0:02:47.7]}
7. e4 {[%clk 0:02:38.1]} 7... Nf6 {[%clk 0:02:43.3]} 8. Nd2 {[%clk 0:02:37.2]}
8... Bd6 {[%clk 0:02:42.3]} 9. Ngf3 {[%clk 0:02:27.7]} 9... O-O {[%clk
0:02:39.7]} 10. h3 {[%clk 0:02:24.3]} 10... Ba6 {[%clk 0:02:29.1]} 11. c4 {[%clk
0:02:08.7]} 11... Rae8 {[%clk 0:02:06.3]} 12. O-O {[%clk 0:02:06.5]} 12... Nh5
{[%clk 0:02:05.8]} 13. g3 {[%clk 0:01:48.9]} 13... Bc8 {[%clk 0:02:00.5]} 14.
Kg2 {[%clk 0:01:47.5]} 14... f5 {[%clk 0:01:57.8]} 15. exf5 {[%clk 0:01:27.9]}
15... Bxf5 {[%clk 0:01:56.3]} 16. Ne1 {[%clk 0:01:15.2]} 16... Nf6 {[%clk
0:01:40]} 17. Ndf3 {[%clk 0:00:44.1]} 17... Qd7 {[%clk 0:01:29.6]} 18. Ng1
{[%clk 0:00:35.5]} 18... e4 {[%clk 0:01:26.6]} 19. dxe4 {[%clk 0:00:31.8]} 19...
Bxe4+ {[%clk 0:01:20.8]} 20. f3 {[%clk 0:00:28.1]} 20... Bf5 {[%clk 0:01:18.2]}
21. Bxf6 {[%clk 0:00:27]} 21... Rxf6 {[%clk 0:01:13.7]} 22. cxd5 {[%clk
0:00:27.2]} 22... Be5 {[%clk 0:00:53.5]} 23. Rc1 {[%clk 0:00:13.8]} 23... cxd5
{[%clk 0:00:49.3]} 24. Rxc5 {[%clk 0:00:13.6]} 24... d4 {[%clk 0:00:45.3]} 25.
Nd3 {[%clk 0:00:13.6]} 25... Bd6 {[%clk 0:00:25.8]} 26. Rc4 {[%clk 0:00:13.7]}
26... Bc7 {[%clk 0:00:17]} 27. Nf2 {[%clk 0:00:11.6]} 27... Bb6 {[%clk
0:00:16.3]} 28. Ne2 {[%clk 0:00:09.9]} 28... d3 {[%clk 0:00:15.1]} 29. Nf4
{[%clk 0:00:10]} 29... Bxf2 {[%clk 0:00:10.5]} 30. Rxf2 {[%clk 0:00:09.8]} 30...
g5 {[%clk 0:00:10]} 31. Nh5 {[%clk 0:00:08.6]} 31... Bxh3+ {[%clk 0:00:10]} 32.
Kh2 {[%clk 0:00:07.9]} 32... Rh6 {[%clk 0:00:10.2]} 33. g4 {[%clk 0:00:07.3]}
33... Re2 {[%clk 0:00:05.3]} 34. Rxe2 {[%clk 0:00:06.5]} 34... dxe2 {[%clk
0:00:05.7]} 35. Qxd7 {[%clk 0:00:06.3]} 35... e1=Q {[%clk 0:00:05.2]} 36. Qg7#
{[%clk 0:00:05.9]} 1-0

[Event "*** Titled Tuesday Blitz"]
[Site "Chess.com"]
[Date "2021.02.02"]
[Round "10"]
[White "NMJeevanK"]
[Black "KubaGepard"]
[Result "1/2-1/2"]
[WhiteElo "2515"]
[BlackElo "2357"]
[TimeControl "180+1"]
[EndTime "11:56:36 PST"]
[Termination "Game drawn by repetition"]

1. e4 {[%clk 0:02:51.4]} 1... c5 {[%clk 0:02:58.9]} 2. Nf3 {[%clk 0:02:49.3]}
2... d6 {[%clk 0:02:55.5]} 3. Bb5+ {[%clk 0:02:49.3]} 3... Nd7 {[%clk
0:02:55.1]} 4. d4 {[%clk 0:02:49]} 4... cxd4 {[%clk 0:02:46.2]} 5. Nxd4 {[%clk
0:02:49.9]} 5... a6 {[%clk 0:02:43.7]} 6. Bxd7+ {[%clk 0:02:48.8]} 6... Bxd7
{[%clk 0:02:44.6]} 7. c4 {[%clk 0:02:48.6]} 7... Rc8 {[%clk 0:02:38.1]} 8. b3
{[%clk 0:02:47.8]} 8... Nf6 {[%clk 0:02:35.2]} 9. Nc3 {[%clk 0:02:46.5]} 9... b5
{[%clk 0:02:28.5]} 10. O-O {[%clk 0:02:36.5]} 10... bxc4 {[%clk 0:02:27.2]} 11.
Be3 {[%clk 0:02:24.9]} 11... e5 {[%clk 0:02:18.5]} 12. Nf5 {[%clk 0:02:20]}
12... Bxf5 {[%clk 0:02:16.6]} 13. exf5 {[%clk 0:02:20.9]} 13... d5 {[%clk
0:02:16.9]} 14. Bg5 {[%clk 0:02:16.4]} 14... d4 {[%clk 0:02:08.3]} 15. Ne4
{[%clk 0:02:14.6]} 15... c3 {[%clk 0:02:03.8]} 16. f4 {[%clk 0:01:54.2]} 16...
Be7 {[%clk 0:01:55.4]} 17. Bxf6 {[%clk 0:01:48.9]} 17... Bxf6 {[%clk 0:01:30]}
18. Qd3 {[%clk 0:01:33.5]} 18... O-O {[%clk 0:01:25.2]} 19. fxe5 {[%clk
0:01:24.6]} 19... Bxe5 {[%clk 0:01:24.2]} 20. f6 {[%clk 0:01:25.5]} 20... g6
{[%clk 0:01:22.5]} 21. Qh3 {[%clk 0:01:02.6]} 21... d3 {[%clk 0:01:18]} 22. Qh6
{[%clk 0:00:58.7]} 22... Qd4+ {[%clk 0:01:07.1]} 23. Kh1 {[%clk 0:00:55]} 23...
Bxf6 {[%clk 0:01:06.4]} 24. Nxf6+ {[%clk 0:00:54]} 24... Qxf6 {[%clk 0:01:06.2]}
25. Rxf6 {[%clk 0:00:54.9]} 25... d2 {[%clk 0:01:05.6]} 26. Rff1 {[%clk
0:00:29.3]} 26... Rfd8 {[%clk 0:01:01.7]} 27. Qf4 {[%clk 0:00:28.8]} 27... c2
{[%clk 0:00:49.3]} 28. h4 {[%clk 0:00:16.7]} 28... d1=Q {[%clk 0:00:44]} 29.
Qxf7+ {[%clk 0:00:16.1]} 29... Kh8 {[%clk 0:00:44]} 30. Qf6+ {[%clk 0:00:16.3]}
30... Kg8 {[%clk 0:00:44]} 31. Qe6+ {[%clk 0:00:12]} 31... Kh8 {[%clk 0:00:41]}
32. Raxd1 {[%clk 0:00:10.9]} 32... cxd1=Q {[%clk 0:00:40.4]} 33. Rxd1 {[%clk
0:00:10.5]} 33... Rxd1+ {[%clk 0:00:40.5]} 34. Kh2 {[%clk 0:00:11.1]} 34... Rcd8
{[%clk 0:00:38.3]} 35. Qxa6 {[%clk 0:00:10.7]} 35... R1d4 {[%clk 0:00:37.8]} 36.
g3 {[%clk 0:00:09.9]} 36... Kg7 {[%clk 0:00:37.9]} 37. Kh3 {[%clk 0:00:09.9]}
37... h5 {[%clk 0:00:37.5]} 38. Qe2 {[%clk 0:00:07.9]} 38... Rd1 {[%clk
0:00:36.2]} 39. Qe7+ {[%clk 0:00:06.9]} 39... Kh6 {[%clk 0:00:35.1]} 40. Qg5+
{[%clk 0:00:06.4]} 40... Kg7 {[%clk 0:00:34.7]} 41. Qe7+ {[%clk 0:00:07]} 41...
Kg8 {[%clk 0:00:32.1]} 42. Qe6+ {[%clk 0:00:07.2]} 42... Kh7 {[%clk 0:00:30.1]}
43. Qe7+ {[%clk 0:00:06.8]} 43... Kh6 {[%clk 0:00:27.2]} 44. Qg5+ {[%clk
0:00:06.7]} 44... Kh7 {[%clk 0:00:25.8]} 45. Qe7+ {[%clk 0:00:06.8]} 45... Kg8
{[%clk 0:00:23.9]} 46. Qe6+ {[%clk 0:00:06.6]} 46... Kh7 {[%clk 0:00:20.5]} 47.
Qe7+ {[%clk 0:00:05.6]} 1/2-1/2